Department Family,Entity,Date,Expense Type,Expense Area,Supplier,Transaction Number,Amount
DOH,London Ambulance Service NHS Trust,03/04/2020,Elective Bets Nurses,Neonatal Transfer Service,Barts Health Nhs Trust,4781,30000
DOH,London Ambulance Service NHS Trust,01/04/2020,Dh Managed Service,Airwave Support,Department Of Health,4794,115766.38
DOH,London Ambulance Service NHS Trust,03/04/2020,Medical & Surgical Items,Covid-19 - Logistics,Nhs Supply Chain,4817,103217.88
DOH,London Ambulance Service NHS Trust,03/04/2020,Computer Software,"Quality, Improvemnt & Learning",Datix Ltd,517363,39194.63
DOH,London Ambulance Service NHS Trust,15/04/2020,Data Network Rental,Networks,Daisy Communications Ltd,517688,129776.86
DOH,London Ambulance Service NHS Trust,01/04/2020,Professional Fees,Im&T Pmo,Venn Group,518152,27378
DOH,London Ambulance Service NHS Trust,22/04/2020,Furniture & Fittings,Capital,Sbfi Limited,518387,53996.4
DOH,London Ambulance Service NHS Trust,08/04/2020,Consultancy/Professional Ppe,Capital,Apira Limited,518703,25758
DOH,London Ambulance Service NHS Trust,03/04/2020,Rent,Hazardous Area Response Team,Jones Lang Lasalle (Rent Only),518792,28059
DOH,London Ambulance Service NHS Trust,03/04/2020,Service Charges,Hazardous Area Response Team,Jones Lang Lasalle (Rent Only),518792,813
DOH,London Ambulance Service NHS Trust,22/04/2020,Furniture & Fittings,Capital,Sbfi Limited,519352,97485.6
DOH,London Ambulance Service NHS Trust,03/04/2020,Computer Hardware,Capital,Dell Computer Corporation Ltd,519721,43800
DOH,London Ambulance Service NHS Trust,03/04/2020,Computer Hardware,Capital,Dell Computer Corporation Ltd,519723,43800
DOH,London Ambulance Service NHS Trust,08/04/2020,Consultancy/Professional Ppe,Capital,Apira Limited,520210,-25758
DOH,London Ambulance Service NHS Trust,03/04/2020,Vehicles,Capital,Wilker Auto Conversions,520265,65356
DOH,London Ambulance Service NHS Trust,03/04/2020,Vehicles,Capital,Wilker Auto Conversions,520267,65356
DOH,London Ambulance Service NHS Trust,03/04/2020,Vehicles,Capital,Wilker Auto Conversions,520268,65356
DOH,London Ambulance Service NHS Trust,22/04/2020,Taxis & Mini Cabs,Non Emergency Transport,Addison Lee,520449,40556.82
DOH,London Ambulance Service NHS Trust,01/04/2020,Buildings,Capital,Gray Dungate Poole Ltd,521448,32014.2
DOH,London Ambulance Service NHS Trust,22/04/2020,Computer Software,111 Nel Operations,Advanced Health & Care,521555,117595.8
DOH,London Ambulance Service NHS Trust,22/04/2020,Computer Software,111 Sel Operations,Advanced Health & Care,521555,88196.86
DOH,London Ambulance Service NHS Trust,22/04/2020,Computer Software,Clinical Hub (Chub),Advanced Health & Care,521555,29398.94
DOH,London Ambulance Service NHS Trust,08/04/2020,Mechanical Planned Replacement,Bromley Estates,Maracom Ltd,521605,31669.2
DOH,London Ambulance Service NHS Trust,03/04/2020,Professional Fees,111 Nel Operations,Hays Specialist Recruitment Ltd,521727,57000
DOH,London Ambulance Service NHS Trust,03/04/2020,Professional Fees,111 Sel Operations,Hays Specialist Recruitment Ltd,521727,57000
DOH,London Ambulance Service NHS Trust,03/04/2020,Computer Hardware,Capital,Dell Computer Corporation Ltd,522697,50700
DOH,London Ambulance Service NHS Trust,01/04/2020,Cleaning Of Premises,Property Management,Lakethorne Ltd,522779,105334.25
DOH,London Ambulance Service NHS Trust,22/04/2020,Computer Software,111 Nel Operations,Advanced Health & Care,522958,181440
DOH,London Ambulance Service NHS Trust,22/04/2020,Computer Software,111 Sel Operations,Advanced Health & Care,522958,136080
DOH,London Ambulance Service NHS Trust,22/04/2020,Computer Software,Clinical Hub (Chub),Advanced Health & Care,522958,60350.22
DOH,London Ambulance Service NHS Trust,08/04/2020,Cad Tools Maintenance,Cad Support,Priority Dispatch,523055,100151.01
DOH,London Ambulance Service NHS Trust,01/04/2020,Accident Repairs,Croydon Workshop,Jubilee Coachworks Limited,523059,26665.52
DOH,London Ambulance Service NHS Trust,01/04/2020,Buildings,Capital,Toureen Retail Ltd,523081,31629.84
DOH,London Ambulance Service NHS Trust,01/04/2020,Buildings,Capital,Toureen Retail Ltd,523082,28173.94
DOH,London Ambulance Service NHS Trust,01/04/2020,Buildings,Capital,Toureen Retail Ltd,523083,31629.84
DOH,London Ambulance Service NHS Trust,01/04/2020,Buildings,Capital,Toureen Retail Ltd,523084,31629.84
DOH,London Ambulance Service NHS Trust,01/04/2020,Buildings,Capital,Toureen Retail Ltd,523087,31629.84
DOH,London Ambulance Service NHS Trust,01/04/2020,Buildings,Capital,Toureen Retail Ltd,523088,31629.84
DOH,London Ambulance Service NHS Trust,22/04/2020,Tyres,Fleet Support Services,Ats Euromaster Ltd,523615,40688.05
DOH,London Ambulance Service NHS Trust,17/04/2020,Blanket Purchase,Supply & Material Management,James Walker Textiles Ltd,523639,48411.18
DOH,London Ambulance Service NHS Trust,08/04/2020,Vehicles,Capital,Wilker Auto Conversions,523642,446042
DOH,London Ambulance Service NHS Trust,15/04/2020,Professional Fees,Programmes & Projects,Training And Consultancy Services Ltd,523903,25800
DOH,London Ambulance Service NHS Trust,08/04/2020,Ip Telephony,Covid-19 - 999 Operations,Bt Plc,524049,26136
DOH,London Ambulance Service NHS Trust,22/04/2020,Furniture & Fittings,Capital,Bhc Healthcare Furniture Ltd,524278,151263.37
DOH,London Ambulance Service NHS Trust,22/04/2020,Data Comms Maintenance,Hazardous Area Response Team,Excelerate Technology Ltd,524291,106412.4
DOH,London Ambulance Service NHS Trust,22/04/2020,Data Comms Maintenance,Hazardous Area Response Team,Excelerate Technology Ltd,524292,110244
DOH,London Ambulance Service NHS Trust,03/04/2020,Computer Software,End User Computing,Insight Direct (Uk) Ltd,524493,28800
DOH,London Ambulance Service NHS Trust,22/04/2020,Computer Hardware,Capital,Dell Computer Corporation Ltd,524501,36744
DOH,London Ambulance Service NHS Trust,01/04/2020,Buildings,Capital,Maritime Horizons Ltd T/A Filtabund,524563,41880
DOH,London Ambulance Service NHS Trust,01/04/2020,Service Charges,Make Ready Service,Interserve Hospital Services,524568,379986
DOH,London Ambulance Service NHS Trust,01/04/2020,Furniture & Fittings,Capital,Hospital Metalcraft Limited,524838,51185.4
DOH,London Ambulance Service NHS Trust,03/04/2020,Professional Fees,Im&T Tech Design Authority,Tm Management Solutions Ltd,524857,37500
DOH,London Ambulance Service NHS Trust,01/04/2020,Course And Conference Fees,Hee Placements,St. Georges University Of London,524870,200000
DOH,London Ambulance Service NHS Trust,03/04/2020,Cad Tools Maintenance,Cad Support,Oracle Corporation Uk Limited,524871,27399.86
DOH,London Ambulance Service NHS Trust,03/04/2020,Ambulance Equipment,Make Ready Service,Stryker Uk Ltd,524935,30270
DOH,London Ambulance Service NHS Trust,01/04/2020,Training Accommodation,International Recruitment 1920,The Independents Hotel Reservations Ltd,525009,52245
DOH,London Ambulance Service NHS Trust,03/04/2020,Private Ambulance Hire,Ops Central - Private Amb,St John Ambulance Londonprince,525035,39531.68
DOH,London Ambulance Service NHS Trust,01/04/2020,Private Ambulance Hire,Ops Central - Private Amb,St John Ambulance Londonprince,525036,34592.14
DOH,London Ambulance Service NHS Trust,01/04/2020,Private Ambulance Hire,Ops Central - Private Amb,St John Ambulance Londonprince,525037,38822.66
DOH,London Ambulance Service NHS Trust,01/04/2020,Private Ambulance Hire,Ops Central - Private Amb,St John Ambulance Londonprince,525038,41229.55
DOH,London Ambulance Service NHS Trust,01/04/2020,Private Ambulance Hire,Ops Central - Private Amb,Falck Uk Ambulance Service Ltd,525055,34389.4
DOH,London Ambulance Service NHS Trust,01/04/2020,Private Ambulance Hire,Ops Central - Private Amb,Falck Uk Ambulance Service Ltd,525056,39529.68
DOH,London Ambulance Service NHS Trust,08/04/2020,Vehicles,Capital,S & B Commercials Plc,525072,31099
DOH,London Ambulance Service NHS Trust,03/04/2020,Acd Maintenance,Networks,Bt Plc,525073,179952.82
DOH,London Ambulance Service NHS Trust,08/04/2020,Vehicles,Capital,S & B Commercials Plc,525074,31099
DOH,London Ambulance Service NHS Trust,08/04/2020,Vehicles,Capital,S & B Commercials Plc,525075,31099
DOH,London Ambulance Service NHS Trust,08/04/2020,Vehicles,Capital,S & B Commercials Plc,525076,31099
DOH,London Ambulance Service NHS Trust,15/04/2020,Make Ready Support,Make Ready Service,Interserve Hospital Services,525118,264526.73
DOH,London Ambulance Service NHS Trust,22/04/2020,Buildings,Capital,Gray Dungate Poole Ltd,525173,65462.4
DOH,London Ambulance Service NHS Trust,22/04/2020,Buildings,Capital,Gray Dungate Poole Ltd,525174,79743.6
DOH,London Ambulance Service NHS Trust,22/04/2020,Buildings,Capital,Gray Dungate Poole Ltd,525175,81507.6
DOH,London Ambulance Service NHS Trust,22/04/2020,Furniture & Fittings,Capital,Gray Dungate Poole Ltd,525177,72660
DOH,London Ambulance Service NHS Trust,24/04/2020,Data Network Rental,Networks,Daisy Communications Ltd,525206,114011.51
DOH,London Ambulance Service NHS Trust,03/04/2020,Computer Software Maintenance,Systems,Software Box Ltd,525207,64829.95
DOH,London Ambulance Service NHS Trust,15/04/2020,Data Network Rental,Networks,Daisy Communications Ltd,525477,-114011.51
DOH,London Ambulance Service NHS Trust,08/04/2020,Vehicles,Capital,S & B Commercials Plc,525489,31099
DOH,London Ambulance Service NHS Trust,08/04/2020,Vehicles,Capital,S & B Commercials Plc,525493,31099
DOH,London Ambulance Service NHS Trust,08/04/2020,Vehicles,Capital,S & B Commercials Plc,525494,31099
DOH,London Ambulance Service NHS Trust,08/04/2020,Vehicles,Capital,S & B Commercials Plc,525495,31099
DOH,London Ambulance Service NHS Trust,06/04/2020,Medical & Surgical Items,Covid-19 - Logistics,Full Support Healthcare Ltd,525644,149100
DOH,London Ambulance Service NHS Trust,03/04/2020,Computer Software Maintenance,Systems,Software Box Ltd,525657,42494.4
DOH,London Ambulance Service NHS Trust,01/04/2020,Rent,Brent Estates,Workman Llp,525807,32293.8
DOH,London Ambulance Service NHS Trust,01/04/2020,Service Charges,Brent Estates,Workman Llp,525807,1893.3
DOH,London Ambulance Service NHS Trust,08/04/2020,Occupational Health Fees,P&C Management,People Asset Management Ltd,525878,56828.59
DOH,London Ambulance Service NHS Trust,03/04/2020,Course And Conference Fees,Hee Placements,Impact Consulting Psychologists Ltd,525897,25342.56
DOH,London Ambulance Service NHS Trust,15/04/2020,Contract Labour,Vehicle Resouce Centre,Churchill Contract Services Ltd,525920,117948.96
DOH,London Ambulance Service NHS Trust,01/04/2020,Travel & Accom (Business Only),Covid-19 - Ambulance Services,Shiva Hotels Waterloo Ltd,525939,31506
DOH,London Ambulance Service NHS Trust,01/04/2020,Travel & Accom (Business Only),Covid-19 - Ambulance Services,Shiva Hotels Waterloo Ltd,525944,-31506
DOH,London Ambulance Service NHS Trust,01/04/2020,Travel & Accom (Business Only),Covid-19 - Corp & Support,Shiva Hotels Waterloo Ltd,525945,31506
DOH,London Ambulance Service NHS Trust,08/04/2020,Make Ready Support,Make Ready Service,Interserve Hospital Services,525955,395106
DOH,London Ambulance Service NHS Trust,08/04/2020,Make Ready Support,Covid-19 - Logistics,Interserve Hospital Services,525959,326313.75
DOH,London Ambulance Service NHS Trust,08/04/2020,Professional Fees,Im&T Tech Design Authority,Tm Management Solutions Ltd,526098,37500
DOH,London Ambulance Service NHS Trust,24/04/2020,Furniture & Fittings,Capital,Secom Plc,526121,41382
DOH,London Ambulance Service NHS Trust,03/04/2020,Private Ambulance Hire,Ops Central - Private Amb,Falck Uk Ambulance Service Ltd,526137,36782.38
DOH,London Ambulance Service NHS Trust,03/04/2020,Private Ambulance Hire,Ops Central - Private Amb,Falck Uk Ambulance Service Ltd,526138,34554.25
DOH,London Ambulance Service NHS Trust,03/04/2020,Private Ambulance Hire,Ops Central - Private Amb,Falck Uk Ambulance Service Ltd,526139,38177.57
DOH,London Ambulance Service NHS Trust,15/04/2020,Private Ambulance Hire,Ops Central - Private Amb,Falck Uk Ambulance Service Ltd,526140,30830.4
DOH,London Ambulance Service NHS Trust,03/04/2020,Private Ambulance Hire,Ops Central - Private Amb,Falck Uk Ambulance Service Ltd,526141,42082.53
DOH,London Ambulance Service NHS Trust,03/04/2020,Private Ambulance Hire,Ops Central - Private Amb,Falck Uk Ambulance Service Ltd,526151,37087.74
DOH,London Ambulance Service NHS Trust,15/04/2020,Private Ambulance Hire,Ops Central - Private Amb,Falck Uk Ambulance Service Ltd,526152,32355.87
DOH,London Ambulance Service NHS Trust,24/04/2020,Computer Hardware,Capital,Dell Computer Corporation Ltd,526234,63000
DOH,London Ambulance Service NHS Trust,24/04/2020,Computer Hardware,Capital,Dell Computer Corporation Ltd,526235,63000
DOH,London Ambulance Service NHS Trust,24/04/2020,Computer Peripherals & Access,Capital,Dell Computer Corporation Ltd,526237,30996
DOH,London Ambulance Service NHS Trust,15/04/2020,Technical Support - Contract,Capita Contract,Capita Secure Information Solutions Ltd,526258,63061.52
DOH,London Ambulance Service NHS Trust,08/04/2020,Private Ambulance Hire,Ops Central - Private Amb,St John Ambulance Londonprince,526287,38059.23
DOH,London Ambulance Service NHS Trust,08/04/2020,Private Ambulance Hire,Ops Central - Private Amb,St John Ambulance Londonprince,526288,38130.21
DOH,London Ambulance Service NHS Trust,15/04/2020,Private Ambulance Hire,Ops Central - Private Amb,St John Ambulance Londonprince,526289,35050.76
DOH,London Ambulance Service NHS Trust,15/04/2020,Private Ambulance Hire,Ops Central - Private Amb,St John Ambulance Londonprince,526290,41071.73
DOH,London Ambulance Service NHS Trust,24/04/2020,Network & Route & Setup,End User Computing,Optimising It Ltd,526326,25920
DOH,London Ambulance Service NHS Trust,22/04/2020,Pts Control Maintenance,Systems,Insight Direct (Uk) Ltd,526360,26612.32
DOH,London Ambulance Service NHS Trust,24/04/2020,Computer Hardware,Capital,Dell Computer Corporation Ltd,526365,46740
DOH,London Ambulance Service NHS Trust,24/04/2020,Computer Hardware,Capital,Dell Computer Corporation Ltd,526367,46740
DOH,London Ambulance Service NHS Trust,22/04/2020,Computer Hardware,Capital,Dell Computer Corporation Ltd,526669,49700.4
DOH,London Ambulance Service NHS Trust,09/04/2020,Private Ambulance Hire,Covid-19 - Ambulance Services,Hats Group,526919,35472
DOH,London Ambulance Service NHS Trust,24/04/2020,Computer Hardware,Capital,Dell Computer Corporation Ltd,526960,33000
DOH,London Ambulance Service NHS Trust,09/04/2020,Ambulance Equipment,Covid-19 - Logistics,Bluelight Uk Ltd,527007,72600
DOH,London Ambulance Service NHS Trust,14/04/2020,Rent,Southwark Bridge Road,Zurich Assurance Ltd,527043,40625.24
DOH,London Ambulance Service NHS Trust,14/04/2020,Managed Service - Nurses,111 Nel Operations,Hays Specialist Recruitment Ltd,527045,853036.26
DOH,London Ambulance Service NHS Trust,17/04/2020,Cleaning Of Premises,Property Management,Lakethorne Ltd,527353,105334.25
DOH,London Ambulance Service NHS Trust,24/04/2020,Computer Hardware,Capital,Dell Computer Corporation Ltd,527387,33000
DOH,London Ambulance Service NHS Trust,24/04/2020,Computer Hardware,Capital,Dell Computer Corporation Ltd,527389,33000
DOH,London Ambulance Service NHS Trust,24/04/2020,Computer Hardware,Capital,Dell Computer Corporation Ltd,527390,33000
DOH,London Ambulance Service NHS Trust,20/04/2020,Medical & Surgical Items,Covid-19 - Logistics,Full Support Healthcare Ltd,527668,524534.4
DOH,London Ambulance Service NHS Trust,15/04/2020,Buildings,Capital,Smith & Company Building & Company,527841,61210.8
DOH,London Ambulance Service NHS Trust,17/04/2020,Medical & Surgical Items,Covid-19 - Logistics,Full Support Healthcare Ltd,527868,179328
DOH,London Ambulance Service NHS Trust,22/04/2020,Computer Hardware,Capital,Dell Computer Corporation Ltd,527901,57960
DOH,London Ambulance Service NHS Trust,17/04/2020,Computer Hardware,Capital,Xma Ltd,527915,77019.6
DOH,London Ambulance Service NHS Trust,20/04/2020,Private Ambulance Hire,Covid-19 - Ambulance Services,Hats Group,528120,101241.6
DOH,London Ambulance Service NHS Trust,22/04/2020,Subscriptions To Associations,Trust Management,Association Of Ambulance Chief Executives,528525,72000
DOH,London Ambulance Service NHS Trust,22/04/2020,Computer Periphs & Accessories,Covid-19 - Im&T,Xma Ltd,528540,172728
DOH,London Ambulance Service NHS Trust,24/04/2020,Buildings,Capital,Smith & Company Building & Company,528838,54720
DOH,London Ambulance Service NHS Trust,24/04/2020,Pts Control Maintenance,Systems,Insight Direct (Uk) Ltd,528872,26151.65
DOH,London Ambulance Service NHS Trust,24/04/2020,Medical & Surgical Items,Covid-19 - Logistics,Greenham,528888,26110.38
DOH,London Ambulance Service NHS Trust,22/04/2020,External Training Services,Leadership & Performance,Tpc Health Ltd,528907,48840
DOH,London Ambulance Service NHS Trust,23/04/2020,Private Ambulance Hire,Covid-19 - Ambulance Services,Hats Group,528981,126552
DOH,London Ambulance Service NHS Trust,24/04/2020,Medical & Surgical Items,Covid-19 - Logistics,Ambu Limited,529311,87305.04
DOH,London Ambulance Service NHS Trust,24/04/2020,Medical & Surgical Items,Covid-19 - Logistics,Ambu Limited,529312,-87305.04
DOH,London Ambulance Service NHS Trust,24/04/2020,Computer Hardware,Capital,Xma Ltd,529609,43130.98
DOH,London Ambulance Service NHS Trust,24/04/2020,Medical Gas,Director Of Ops,British Oxygen,72590,118693.13
DOH,London Ambulance Service NHS Trust,16/04/2020,Fuel,Director Of Ops,BP Oil,72460,89550.11
DOH,London Ambulance Service NHS Trust,16/04/2020,CNST Contributions,Legal Services,NHS Litigation Authority,72491,470345.2
DOH,London Ambulance Service NHS Trust,16/04/2020,Liability to a 3rd Party Scheme,Legal Services,NHS Litigation Authority,72491,59094.4
DOH,London Ambulance Service NHS Trust,16/04/2020,Property Expenses Scheme,Legal Services,NHS Litigation Authority,72491,1807
